fUSD/lending_fUSD_20240104
["ID","MTS","AMOUNT","RATE_DAILY","PERIOD"]
[310113855,1704358897770,157.3,0.00022052,2]
[310113856,1704358897965,157.3,0.00022166,2]
[310113857,1704358898181,157.3,0.00022281,2]
[310113858,1704358898381,157.3,0.00022396,2]
[310113861,1704358922180,591.06,0.00021784,2]
[310113862,1704359066199,153.44,0.00021948,2]
[310113863,1704359066439,153.44,0.00022075,2]
[310113864,1704359066822,153.44,0.00022202,2]
[310113865,1704359067024,153.44,0.00022329,2]
[310113866,1704359067237,153.44,0.00022456,2]
[310113867,1704359073681,207.0,0.00022469,2]
[310113868,1704359076155,-219.77824073,0.0002251,2]
[310113869,1704359076178,-157.3,0.00022511,2]
[310113870,1704359076199,-2612.65610663,0.00022514,2]
[310113871,1704359076221,-2300.49008254,0.00022515,2]
[310113872,1704359076243,-167.55372245,0.00022518,2]
[310113873,1704359076265,-167.55372245,0.00022542,2]
[310113874,1704359076286,-764.52741755,0.00022546,2]
[310113875,1704359076308,-193.67,0.00022548,2]
[310113876,1704359076331,-150.0,0.00022564,2]
[310113877,1704359076353,-167.55372245,0.00022565,2]
[310113878,1704359076373,-5389.71,0.00022565,2]
[310113879,1704359076394,-153.44,0.00022583,2]
[310113880,1704359076414,-167.55372245,0.00022589,2]
[310113881,1704359088848,420.36,0.00021838,2]
[310113882,1704359096858,157.45,0.00022056,2]
[310113883,1704359097258,157.45,0.00022471,2]
[310113884,1704359172716,-219.77824073,0.00022612,2]
[310113885,1704359172738,-167.55372245,0.00022613,2]
[310113886,1704359172757,-2300.49008254,0.00022625,2]
[310113887,1704359172779,-157.3,0.00022626,2]
[310113888,1704359172800,-167.55372245,0.00022637,2]
[310113889,1704359172819,-522.2974567,0.00022648,2]
[310113890,1704359172838,-169.46,0.00022649,2]
[310113891,1704359173103,-167.55372245,0.00022661,2]
[310113892,1704359173124,-159.84,0.00022665,2]
[310113893,1704359173147,-193.67,0.00022666,2]
[310113894,1704359173169,-499.99,0.00022666,2]
[310113895,1704359173191,-167.55372245,0.00022685,2]
[310113901,1704359188072,-2704.19669318,0.0002269,2]
[310113902,1704359188095,-150.0,0.00022697,2]
[310113903,1704359188117,-164.12605271,0.00022698,2]
[310113904,1704359188136,-1826.01828881,0.00022698,2]
[310113905,1704359188155,-2620.33512364,0.00022698,2]
[310113906,1704359188173,-301.02065151,0.00022698,2]
[310113907,1704359188194,-219.77824073,0.00022698,2]
[310113908,1704359188212,-479.45,0.00022699,2]
[310113909,1704359188231,-20526.9875424,0.000227,2]
[310113910,1704359280536,569.77,0.0001999,2]
[310113911,1704359281333,569.77,0.00022254,2]
[310113912,1704359328178,1324.29,0.0002193,2]
[310113913,1704359346972,157.2,0.00021921,2]
[310113914,1704359347368,157.2,0.00022469,2]
[310113920,1704359356998,166.49,0.00021921,2]
[310113930,1704359431918,-2300.49008254,0.00022699,2]
[310113931,1704359431928,-19798.3865576,0.000227,2]
[310113932,1704359431938,-3374.7745,0.000227,2]
[310113933,1704359431947,-1332.5954,0.000227,2]
[310113934,1704359431957,-641.6555,0.000227,2]
[310113935,1704359431966,-5348.2438,0.000227,2]
[310113936,1704359431976,-183.28063339,0.000227,2]
[310113937,1704359431986,-167.55372245,0.00022709,2]
[310113938,1704359431995,-153.44,0.0002271,2]
[310113939,1704359432005,-167.55372245,0.00022733,2]
[310113940,1704359432014,-157.3,0.00022741,2]
[310113941,1704359432023,-167.55372245,0.00022757,2]
[310113944,1704359432297,-167.55372245,0.00022781,2]
[310113945,1704359432307,-193.67,0.00022783,2]
[310113946,1704359432317,-1000.0,0.000228,2]
[310113949,1704359432327,-500.0,0.000228,2]
[310113952,1704359432336,-828.7832,0.000228,2]
[310113955,1704359432346,-21043.749,0.000228,2]
[310113957,1704359432355,-167.55372245,0.00022804,2]
[310113959,1704359432364,-167.55372245,0.00022828,2]
[310113961,1704359432374,-153.44,0.00022837,2]
[310113964,1704359432383,-167.55372245,0.00022852,2]
[310113967,1704359432393,-157.3,0.00022856,2]
[310113970,1704359432401,-167.55372245,0.00022876,2]
[310113973,1704359432411,-157.45,0.00022886,2]
[310113976,1704359432420,-297.6426,0.00022898,2]
[310113979,1704359432430,-1399.7988,0.00022898,2]
[310113982,1704359432439,-461.8641,0.00022898,2]
[310113985,1704359432449,-2500.0,0.00022898,2]
[310113988,1704359432458,-1080.3170251,0.000229,2]
[310113991,1704359432468,-167.55372245,0.000229,2]
[310113993,1704359432478,-1247.95317324,0.000229,2]
[310113995,1704359432487,-187.76604445,0.000229,2]
[310113997,1704359432497,-428.29190584,0.000229,6]
[310114000,1704359432506,-216.60849032,0.000229,2]
[310114003,1704359432515,-554.05716724,0.000229,2]
[310114006,1704359432526,-175.79708537,0.000229,2]
[310114009,1704359432535,-193.67,0.00022901,2]
[310114012,1704359432544,-1324.29,0.00022908,2]
[310114015,1704359432553,-908.51,0.00022929,2]
[310114017,1704359432564,-159.84,0.00022961,2]
[310114019,1704359432574,-153.44,0.00022964,2]
[310114021,1704359432583,-157.3,0.0002297,2]
[310114024,1704359432594,-209.47728904,0.0002299,2]
[310114026,1704359432605,-3349.73337623,0.00022996,2]
[310114028,1704359432614,-756.37620941,0.00022996,2]
[310114029,1704359432624,-220.31430902,0.00022996,2]
[310114030,1704359432633,-155.64850856,0.00022996,2]
[310114031,1704359432643,-541.72236882,0.00022996,2]
[310114032,1704359432653,-155.69293593,0.00022996,2]
[310114033,1704359432664,-155.15537703,0.00022996,2]
[310114034,1704359432675,-155.73863372,0.00022996,2]
[310114035,1704359432685,-198.87806985,0.00022996,2]
[310114036,1704359432694,-190.1087851,0.00022996,2]
[310114037,1704359432704,-235.67264847,0.00022996,2]
[310114038,1704359432715,-336.63955215,0.00022997,2]
[310114039,1704359432725,-250.44065719,0.00022998,2]
[310114040,1704359432735,-513.80428295,0.00022998,2]
[310114041,1704359432746,-284.36256333,0.00022998,2]
[310114042,1704359432756,-155.51911958,0.00022998,2]
[310114043,1704359432767,-1058.21468185,0.00022998,2]
[310114044,1704359432778,-418.36194572,0.00022998,2]
[310114045,1704359432788,-16709.42947732,0.00022998,2]
[310114046,1704359432798,-196.25088216,0.00022998,2]
[310114047,1704359432807,-107176.23472262,0.00022998,2]
[310114048,1704359432818,-2947.53786424,0.00022998,2]
[310114049,1704359432829,-699.78767658,0.00022999,2]
[310114050,1704359432839,-11642.4584435,0.00022999,2]
[310114051,1704359432850,-687.29705999,0.00022999,2]
[310114052,1704359432860,-161.64983039,0.00022999,2]
[310114053,1704359432870,-1855.13007541,0.00022999,2]
[310114054,1704359432880,-155.0,0.00022999,2]
[310114055,1704359432890,-3921.05526832,0.00022999,2]
[310114056,1704359432901,-1199.42389442,0.00022999,2]
[310114057,1704359432912,-937.59787031,0.00022999,2]
[310114058,1704359432922,-18952.0354155,0.00022999,2]
[310114059,1704359432934,-3022.58840799,0.00022999,2]
[310114060,1704359432944,-245.81988917,0.00022999,2]
[310114061,1704359432954,-1252.84760804,0.00022999,2]
[310114062,1704359432964,-309.08429853,0.00022999,2]
[310114063,1704359432974,-789.95851608,0.00022999,2]
[310114064,1704359432986,-500.0,0.00022999,4]
[310114065,1704359432996,-500.0,0.00022999,4]
[310114066,1704359433006,-486.26935991,0.00022999,4]
[310114067,1704359433017,-382.71057668,0.00022999,4]
[310114068,1704359433027,-239.60014923,0.00022999,4]
[310114069,1704359433038,-605.86846707,0.00022999,4]
[310114070,1704359433049,-222.55299174,0.00022999,2]
[310114071,1704359433060,-300.0,0.00022999,2]
[310114072,1704359433072,-300.0,0.00022999,2]
[310114073,1704359433085,-300.0,0.00022999,2]
[310114074,1704359433096,-300.0,0.00022999,2]
[310114075,1704359433107,-300.0,0.00022999,2]
[310114076,1704359433118,-300.0,0.00022999,2]
[310114077,1704359433128,-300.0,0.00022999,2]
[310114078,1704359433138,-300.0,0.00022999,2]
[310114079,1704359433148,-300.0,0.00022999,2]
[310114080,1704359433157,-300.0,0.00022999,2]
[310114081,1704359433167,-300.0,0.00022999,2]
[310114082,1704359433176,-300.0,0.00022999,2]
[310114083,1704359433186,-300.0,0.00022999,2]
[310114084,1704359433196,-300.0,0.00022999,2]
[310114085,1704359433206,-300.0,0.00022999,2]
[310114086,1704359433216,-300.0,0.00022999,2]
[310114087,1704359433226,-300.0,0.00022999,2]
[310114088,1704359433235,-107916.51325447,0.00023,2]
[310114089,1704359433251,-546383.35999326,0.00023,2]
[310114090,1704359433263,-65677.24977006,0.00023,2]
[310114091,1704359433277,-7354.64342809,0.00023,2]
[310114092,1704359433293,-780.78081971,0.00023,2]
[310114093,1704359433309,-1425.29536439,0.00023,2]
[310114094,1704359433325,-1600.9864192,0.00023,2]
[310114095,1704359433337,-182800.00000002,0.00023,2]
[310114096,1704359433349,-558.692,0.00023,2]
[310114097,1704359438774,-526.63901072,0.00022999,2]
[310114098,1704359438783,-3692.08163571,0.00023,2]
[310114099,1704359438795,-19019.70968614,0.00023,2]
[310114100,1704359438806,-44243.39434185,0.00023,2]
[310114101,1704359438832,-3174.66396125,0.00023,2]
[310114102,1704359438845,-99912.37401965,0.00023,2]
[310114103,1704359438891,-1423.44,0.00023,2]
[310114114,1704359440492,-507.3397,0.00022898,2]
[310114115,1704359440502,-2011.83179884,0.00023,2]
[310114116,1704359441162,-526.63901073,0.00022999,2]
[310114117,1704359441172,-231.53949043,0.00023,2]
[310114118,1704359441231,-552.16636131,0.00023,2]
[310114119,1704359441348,-4578.95737862,0.00023,2]
[310114120,1704359441363,-2421.31069343,0.00023,2]
[310114121,1704359441375,-4399.67682052,0.00023,2]
[310114122,1704359441404,-270.17983787,0.00023,2]
[310114123,1704359441416,-851.18699985,0.00023,2]
[310114124,1704359441464,-323.18059475,0.00023,2]
[310114162,1704359442874,-699.5899999,0.00023,2]
[310114163,1704359442931,-470.75197802,0.00023,2]
[310114164,1704359442944,-5800.66610527,0.00023,2]
[310114165,1704359442956,-14610.59386256,0.00023,2]
[310114166,1704359442967,-2198.03735021,0.00023,2]
[310114167,1704359442990,-2542.70831463,0.00023,2]
[310114175,1704359449334,-236.22369618,0.000229,2]
[310114176,1704359449343,-622.11221756,0.00022999,2]
[310114177,1704359449454,-218.26251975,0.00022999,2]
[310114178,1704359449463,-397.47362738,0.00022999,2]
[310114179,1704359449476,-619.84914807,0.00022999,2]
[310114180,1704359449488,-1283.16730709,0.00022999,2]
[310114181,1704359449497,-263.31950536,0.00022999,2]
[310114182,1704359449507,-1481.05320278,0.00023,2]
[310114183,1704359449521,-11756.92629555,0.00023,2]
[310114184,1704359449533,-37243.31864786,0.00023,2]
[310114185,1704359451238,359.77442061,0.00018399,2]
[310114186,1704359527640,663.71,0.00022264,2]
[310114187,1704359599446,169.46,0.00022264,2]
[310114188,1704359625491,545.1,0.00022264,2]
[310114189,1704359832745,166.49,0.00022258,2]
[310114190,1704359843351,1147.71,0.00022258,2]
[310114191,1704359852613,512.79,0.00020326,2]
[310114192,1704359981031,469.03,0.00022211,2]
[310114193,1704360007135,153.44,0.00022378,2]
[310114194,1704360060151,155.06,0.00022437,2]
[310114195,1704360172248,10000.0,0.00022501,2]
[310114196,1704360187780,10000.0,0.00022501,2]
[310114197,1704360198920,10000.0,0.00022501,2]
[310114198,1704360215958,10000.0,0.00022501,2]
[310114199,1704360226627,-296.70450602,0.00022501,2]
[310114200,1704360238610,5808.15,0.000225,2]
[310114201,1704360248308,2300.49008254,0.000225,2]
[310114202,1704360261852,526.32126341,0.000225,2]
[310114203,1704360267033,764.52741755,0.000225,2]
[310114204,1704360269192,522.2974567,0.000225,2]
[310114210,1704360312546,487.15,0.00020349,2]
[310114211,1704360333345,176.58,0.00022221,2]
[310114212,1704360340273,9703.3,0.000225,2]
[310114213,1704360347484,764.52741755,0.000225,2]
[310114214,1704360398854,1071.19,0.00022238,2]
[310114215,1704360403291,624.77,0.00022223,2]
[310114224,1704360544851,159.84,0.00022459,2]
[310114225,1704360552834,436.08,0.00022203,2]
[310114226,1704360557430,155.0,0.00022223,2]
[310114227,1704360558526,226.69801692,0.00022223,2]
[310114228,1704360561804,155.22040906,0.00020001,2]
[310114229,1704360562628,155.91276087,0.00022223,2]
[310114230,1704360567266,5175.7863842,0.00022223,2]
[310114231,1704360568632,155.1479515,0.00022223,2]
[310114232,1704360576389,1030.31899337,0.00022223,2]
[310114233,1704360576816,882.45739522,0.00022223,2]
[310114234,1704360583808,155.60976152,0.00020001,2]
[310114235,1704360584538,281.89541594,0.00022223,2]
[310114236,1704360587268,502.84534134,0.00022223,2]
[310114237,1704360587758,192.46065482,0.0002,2]
[310114238,1704360589870,2679.28129287,0.00022223,2]
[310114239,1704360591103,-294.87317691,0.00022501,2]
[310114240,1704360591128,-2300.49008254,0.00022612,2]
[310114241,1704360591153,-487.15,0.00022613,2]
[310114242,1704360591178,-525.40831373,0.00022768,2]
[310114243,1704360591204,-261.37140964,0.00022768,2]
[310114244,1704360591228,-280.20148086,0.00022769,2]
[310114276,1704360632097,-1069.24,0.00022768,2]
[310114277,1704360632107,-190.0,0.00022768,2]
[310114278,1704360632116,-531.40751375,0.00022769,2]
[310114279,1704360632126,-3528.21528,0.0002277,2]
[310114280,1704360632138,-1712.57262717,0.0002277,2]
[310114281,1704360632151,-418.90217464,0.0002277,2]
[310114282,1704360632168,-965.39069473,0.0002277,2]
[310114283,1704360632399,-613.3898,0.0002277,2]
[310114284,1704360632412,-782.54407256,0.0002277,2]
[310114285,1704360632423,-6534.63943289,0.0002277,2]
[310114286,1704360632435,-2927.41322979,0.0002277,2]
[310114287,1704360632447,-3722.27159976,0.0002277,2]
[310114288,1704360632459,-955.53334241,0.0002277,2]
[310114290,1704360632475,-417.65152315,0.0002277,2]
[310114293,1704360632486,-1172.7442229,0.0002277,2]
[310114295,1704360632498,-17136.31969036,0.0002277,2]
[310114298,1704360632509,-453.45501243,0.0002277,2]
[310114301,1704360632520,-712.646056,0.0002277,2]
[310114304,1704360632532,-5448.84824121,0.0002277,2]
[310114306,1704360632541,-17257.36519565,0.0002277,2]
[310114309,1704360632554,-6493.90380435,0.0002277,2]
[310114311,1704360632564,-1318.53542178,0.0002277,2]
[310114315,1704360632576,-905.01522615,0.0002277,2]
[310114318,1704360632588,-9340.8087715,0.0002277,2]
[310114320,1704360632599,-1201.12128886,0.0002277,2]
[310114323,1704360632610,-1305.9749164,0.0002277,2]
[310114328,1704360632638,-430.33,0.0002277,2]
[310114331,1704360632653,-314.19872509,0.0002277,2]
[310114345,1704360638172,-592.85200832,0.00022769,2]
[310114346,1704360638182,-241.66712699,0.00022769,2]
[310114347,1704360638192,-8935.28465022,0.0002277,2]
[310114348,1704360638201,-23751.269,0.0002277,2]
[310114349,1704360638211,-621.0,0.0002277,2]
[310114350,1704360638222,-159.84,0.00022882,2]
[310114351,1704360638232,-473.39960339,0.00022897,2]
[310114352,1704360638242,-320.90228512,0.00022897,2]
[310114353,1704360638251,-7525.2819,0.00022898,2]
[310114354,1704360638260,-28611.2429,0.00022898,2]
[310114355,1704360638270,-1000.0,0.00022899,2]
[310114356,1704360638280,-235.20782868,0.000229,2]
[310114357,1704360638291,-197.928,0.000229,2]
[310114358,1704360638302,-7500.0,0.000229,2]
[310114359,1704360638312,-945.27739698,0.000229,2]
[310114360,1704360638326,-369.37144484,0.000229,2]
[310114361,1704360638335,-342.63352468,0.000229,6]
[310114362,1704360638348,-2256.54415076,0.000229,2]
[310114363,1704360638357,-155.0,0.00022998,2]
[310114364,1704360638366,-2937.59266006,0.00022998,2]
[310114365,1704360638375,-1252.84760804,0.00022998,2]
[310114366,1704360638384,-1847.7844965,0.00022999,2]
[310114367,1704360638394,-8594.78650649,0.00022999,2]
[310114368,1704360638404,-263.31950536,0.00022999,2]
[310114369,1704360638413,-65481.33354337,0.00022999,2]
[310114370,1704360638422,-300.0,0.00022999,2]
[310114371,1704360638432,-300.0,0.00022999,2]
[310114372,1704360638441,-300.0,0.00022999,2]
[310114373,1704360638450,-300.0,0.00022999,2]
[310114374,1704360638459,-300.0,0.00022999,2]
[310114375,1704360638469,-300.0,0.00022999,2]
[310114376,1704360638478,-300.0,0.00022999,2]
[310114377,1704360638488,-300.0,0.00022999,2]
[310114378,1704360638497,-300.0,0.00022999,2]
[310114379,1704360638506,-300.0,0.00022999,2]
[310114380,1704360638515,-300.0,0.00022999,2]
[310114381,1704360638525,-136048.5536311,0.00023,2]
[310114382,1704360638568,-440.7,0.00023,2]
[310114383,1704360638583,-775.06570152,0.00023,2]
[310114384,1704360638599,-214735.0,0.00023,2]
[310114386,1704360640822,-251.96241439,0.00022768,2]
[310114387,1704360640834,-491.14843446,0.00022768,2]
[310114388,1704360640883,-1659.18843317,0.00022768,2]
[310114389,1704360640895,-3189.66020894,0.00022768,2]
[310114390,1704360640907,-9985.01013165,0.00022768,2]
[310114391,1704360640918,-265.1286,0.00022768,2]
[310114392,1704360641551,-34138.37163904,0.00022768,2]
[310114420,1704360643182,-264.96451937,0.00022768,2]
[310114422,1704360643294,-313.10995,0.00022768,2]
[310114441,1704360646185,-317.72347179,0.00022768,2]
[310114442,1704360646245,-1395.68983989,0.00022768,2]
[310114443,1704360646262,-14942.31347703,0.00022768,2]
[310114444,1704360649475,-49958.03250272,0.00022768,2]
[310114455,1704360676267,409.01571504,0.00022999,10]
[310114456,1704360692505,-500.0,0.00022768,2]
[310114457,1704360713304,-22844.27321129,0.00022768,2]
[310114458,1704360746417,-486.05483273,0.00022765,2]
[310114459,1704360746443,-11647.7685823,0.00022765,2]
[310114460,1704360753000,-4259.77281501,0.00022766,2]
[310114461,1704360758464,-2131.35827249,0.00022767,2]
[310114462,1704360767566,-226.69801692,0.00022769,2]
[310114463,1704360767589,-4785.42344258,0.00022769,2]
[310114464,1704360778380,500.0,0.00022542,2]
[310114465,1704360825264,438.43,0.00020271,2]
[310114466,1704360859833,467.71198462,0.00020271,2]
[310114467,1704360859856,415.11249964,0.00020271,2]
[310114472,1704360875867,491.02948498,0.00020271,2]
[310114473,1704360875893,266.23745075,0.00020271,2]
[310114480,1704360922865,639.90453387,0.00022164,2]
[310114481,1704360922891,359.86546613,0.00022164,2]
[310114482,1704360929236,500.18,0.00022151,2]
[310114486,1704360998568,46.09651849,0.00022151,2]
[310114487,1704360998597,214.21516498,0.00022151,2]
[310114488,1704361003987,174.73,0.00017707,2]
[310114489,1704361008684,157.45,0.00022361,2]
[310114490,1704361020476,300.0,0.00022434,2]
[310114496,1704361273434,59.74681964,0.00020138,2]
[310114497,1704361273458,356.75318036,0.00020138,2]
[310114498,1704361273651,416.5,0.00022402,2]
[310114501,1704361385706,132.88880426,0.00022061,2]
[310114502,1704361385741,31.49119574,0.00022061,2]
[310114503,1704361464164,159.87,0.00022199,2]
[310114504,1704361482825,599.85,0.00021988,2]
[310114505,1704361487412,348.86,0.00021988,2]
[310114508,1704361510464,933.11,0.00021972,2]
[310114509,1704361594001,207.0,0.00021724,2]
[310114510,1704361622645,164.26497656,0.00022442,2]
[310114511,1704361681152,5207.0,0.00022317,2]
[310114541,1704361832593,-150.0,0.0002252,2]
[310114542,1704361832602,-383.49945637,0.00022527,2]
[310114543,1704361832613,-363.0639239,0.00022528,2]
[310114544,1704361832623,-150.0,0.0002254,2]
[310114545,1704361832632,-164.38,0.00022796,2]
[310114546,1704361832642,-11558.2990404,0.00022798,2]
[310114547,1704361832654,-89.4695419,0.00022798,2]
[310114548,1704361832663,-268.86919774,0.00022798,2]
[310114549,1704361832673,-100.12126036,0.00022798,2]
[310114550,1704361832684,-958.38608234,0.00022798,2]
[310114551,1704361832694,-6423.99064266,0.00022799,2]
[310114552,1704361832706,-6127.228,0.00022799,2]
[310114553,1704361832717,-1098.65038974,0.00022799,2]
[310114554,1704361832733,-1935.7195676,0.00022799,2]
[310114556,1704361832742,-6927.5858324,0.000228,2]
[310114559,1704361832762,-21683.6570676,0.000228,2]
[310114561,1704361832771,-7525.2819,0.000228,2]
[310114563,1704361832780,-1000.0,0.000228,2]
[310114565,1704361832790,-365.29455243,0.00022897,3]
[310114567,1704361832799,-1754.72,0.00022897,2]
[310114569,1704361832809,-278.24903496,0.00022897,2]
[310114571,1704361832821,-700.0,0.00022897,2]
[310114573,1704361832833,-5453.94569491,0.00022897,2]
[310114575,1704361832844,-513.87993574,0.00022897,2]
[310114577,1704361832856,-280.56667432,0.00022897,2]
[310114578,1704361832868,-3245.37162241,0.00022897,2]
[310114579,1704361832880,-14.80986615,0.00022897,2]
[310114580,1704361832890,-429.64833181,0.00022897,2]
[310114581,1704361832899,-400.0,0.00022897,2]
[310114582,1704361832908,-945.27739698,0.00022897,2]
[310114583,1704361832918,-245.10987285,0.00022898,2]
[310114584,1704361832928,-284.29905279,0.00022898,2]
[310114585,1704361832938,-500.0,0.00022898,2]
[310114586,1704361832947,-197.928,0.00022899,2]
[310114587,1704361832956,-1000.0,0.00022899,2]
[310114588,1704361832965,-1102.25742847,0.00022899,2]
[310114589,1704361832977,-352.0872,0.00022899,2]
[310114590,1704361832989,-319.28,0.00022899,2]
[310114591,1704361833000,-6721.71,0.00022899,2]
[310114592,1704361833016,-658.2954308,0.00022899,2]
[310114593,1704361833028,-3911.5218644,0.00022899,2]
[310114594,1704361833040,-3913.48766295,0.00022899,2]
[310114595,1704361833051,-994.72908257,0.00022899,2]
[310114597,1704361840925,-399.14401187,0.00022897,3]
[310114598,1704361841046,-8.01196655,0.00022897,3]
[310114599,1704361841057,-688.44262579,0.00022899,2]
[310114600,1704361841253,-64873.6303619,0.00022899,2]
[310114601,1704361841266,-39717.77323217,0.00022899,2]
[310114602,1704361841276,-9208.50091281,0.000229,2]
[310114603,1704361841286,-40300.9441,0.000229,2]
[310114604,1704361841296,-7500.0,0.000229,2]
[310114605,1704361841306,-6985.1254767,0.000229,2]
[310114606,1704361841316,-1667.23299792,0.000229,2]
[310114607,1704361841325,-523.90693468,0.000229,2]
[310114608,1704361841335,-342.63352468,0.000229,6]
[310114609,1704361841344,-293.34238394,0.000229,2]
[310114610,1704361841354,-245.30908037,0.000229,2]
[310114611,1704361841364,-2402.15763946,0.000229,2]
[310114612,1704361841374,-933.11,0.00022951,2]
[310114613,1704361841384,-157.45,0.00022962,2]
[310114614,1704361841394,-340.3623158,0.00022994,2]
[310114615,1704361841403,-5364.769136,0.00022994,2]
[310114616,1704361841413,-225.52101914,0.00022996,2]
[310114617,1704361841423,-228.18890628,0.00022996,2]
[310114618,1704361841433,-217.02178002,0.00022996,2]
[310114619,1704361841442,-155.49487715,0.00022996,2]
[310114620,1704361841452,-2821.17984223,0.00022996,2]
[310114621,1704361841462,-547.77244431,0.00022996,2]
[310114622,1704361841472,-1847.7844965,0.00022996,2]
[310114623,1704361841482,-578.96945124,0.00022996,2]
[310114624,1704361841491,-530.59787112,0.00022996,2]
[310114625,1704361841502,-155.0,0.00022996,2]
[310114626,1704361841511,-1852.84792754,0.00022996,2]
[310114627,1704361841520,-2937.59266006,0.00022996,2]
[310114628,1704361841530,-155.32242594,0.00022996,2]
[310114629,1704361841539,-1252.84760804,0.00022996,2]
[310114630,1704361841549,-694.54837034,0.00022996,2]
[310114631,1704361841558,-433.62680946,0.00022996,2]
[310114634,1704361841570,-155.6008495,0.00022997,2]
[310114635,1704361841579,-1041.19932575,0.00022997,2]
[310114636,1704361841589,-155.46774164,0.00022997,2]
[310114637,1704361841599,-576.00930164,0.00022997,2]
[310114638,1704361841609,-155.0,0.00022997,2]
[310114639,1704361841619,-1762.36251206,0.00022997,2]
[310114640,1704361841629,-155.0,0.00022997,2]
[310114641,1704361841640,-254.96667626,0.00022997,2]
[310114642,1704361841650,-157.11544536,0.00022998,2]
[310114643,1704361841659,-245.81988917,0.00022998,2]
[310114644,1704361841668,-369.92055027,0.00022998,2]
[310114645,1704361841678,-2684.37057527,0.00022998,2]
[310114647,1704361841688,-155.4249365,0.00022998,2]
[310114649,1704361841698,-155.0,0.00022998,2]
[310114651,1704361841707,-3921.05526832,0.00022998,2]
[310114653,1704361841717,-155.0,0.00022998,2]
[310114655,1704361841726,-234.39530691,0.00022998,2]
[310114657,1704361841736,-155.0,0.00022998,2]
[310114659,1704361841745,-282.70272373,0.00022998,2]
[310114661,1704361841755,-172.99308414,0.00022998,2]
[310114663,1704361841765,-12945.77510568,0.00022999,2]
[310114665,1704361841774,-155.0,0.00022999,2]
[310114667,1704361841784,-263.31950536,0.00022999,2]
[310114668,1704361841793,-124663.66685888,0.00023,2]
[310114670,1704361841810,-9385.10477512,0.00023,2]
[310114684,1704361843428,-291.26577706,0.00023,2]
[310114685,1704361843571,-394.6393733,0.00023,2]
[310114691,1704361846507,-473.22504116,0.00022997,2]
[310114692,1704361846516,-533.89095884,0.00023,2]
[310114718,1704361873160,456.28,0.0002196,2]
[310114719,1704362316459,433.46,0.00021856,2]
[310114720,1704362344446,279.08,0.0002239,2]
[310114721,1704362382090,481.50574229,0.00018398,2]
[310114722,1704362391397,420.31572492,0.00022078,2]
[310114723,1704362391432,1451.54352143,0.00022078,2]
[310114724,1704362431330,4725.0,0.00022409,2]
[310114725,1704362462996,200.0,0.00022409,2]
[310114726,1704362479469,842.27,0.0002241,2]
[310114734,1704362615743,6883.7725868,0.00022,2]
[310114736,1704362784144,164.46,0.00022408,2]
[310114737,1704362809894,217.86,0.00022339,2]
[310114738,1704362860185,452.11,0.00020384,2]
[310114742,1704362950177,200.0,0.00022219,2]
[310114743,1704362982123,1000.0,0.00022285,2]
[310114744,1704362998937,23900.0,0.00022251,2]
[310114751,1704363010220,816.63,0.00022233,2]
[310114752,1704363031022,150.0,0.00022211,2]
[310114764,1704363031577,-523.14264876,0.00022566,2]
[310114765,1704363031587,-151.95,0.00022567,2]
[310114766,1704363031596,-89.25567108,0.0002258,2]
[310114767,1704363031609,-70.58432892,0.0002258,2]
[310114768,1704363031618,-428.47038781,0.00022648,2]
[310114769,1704363031630,-23.63961219,0.00022648,2]
[310114770,1704363031641,-164.46,0.00022728,2]
[310114771,1704363031651,-154.13951159,0.000228,2]
[310114772,1704363031660,-150.0,0.00022899,2]
[310114773,1704363031670,-36.33145734,0.000229,2]